bitfinex-derivatives/quotes_BTCF0:USTF0_20230702
["timestamp","ask_amount","ask_price","bid_price","bid_amount"]
[1688320810068,0.05,30458.0,30457.0,0.65395218]
[1688320810274,0.069697,30458.0,30457.0,0.67218187]
[1688320810490,0.069697,30458.0,30457.0,0.65395218]
[1688320810784,0.317897,30458.0,30457.0,0.38690273]
[1688320811479,0.317897,30458.0,30457.0,0.00640473]
[1688320811480,0.324497,30458.0,30457.0,0.00640473]
[1688320811794,0.2477,30456.0,30454.0,0.00018402]
[1688320811975,0.272999,30455.0,30454.0,0.00018402]
[1688320814274,0.272999,30455.0,30454.0,0.01988302]
[1688320814478,0.272999,30455.0,30454.0,0.0266254]
[1688320814681,0.394399,30455.0,30454.0,0.0266254]
[1688320815085,0.713299,30455.0,30454.0,0.0266254]
[1688320815590,0.706699,30455.0,30454.0,0.0266254]
[1688320815787,0.706699,30455.0,30454.0,0.0069264]
[1688320815980,0.706699,30455.0,30454.0,0.00018402]
[1688320817591,0.706699,30455.0,30454.0,0.01988302]
[1688320817795,0.706699,30455.0,30454.0,0.02662637]
[1688320818180,0.706699,30455.0,30454.0,0.00692737]
[1688320819090,0.706699,30455.0,30454.0,0.00018402]
[1688320819279,0.706699,30455.0,30454.0,0.00692782]
[1688320833192,0.05,30452.0,30450.0,0.04584901]
[1688320833506,0.387801,30451.0,30450.0,0.019702]
[1688320834093,0.06616459,30454.0,30450.0,0.380502]
[1688320834407,0.00049259,30454.0,30453.0,0.7289]
[1688320834699,0.432357,30459.0,30453.0,0.7486]
[1688320834896,0.065657,30459.0,30458.0,1.0897]
[1688320835101,0.065657,30459.0,30458.0,1.18264196]
[1688320835300,0.432757,30459.0,30458.0,0.39934645]
[1688320835489,0.448757,30459.0,30458.0,0.380497]
[1688320835809,0.448757,30459.0,30458.0,0.39934645]
[1688320835991,0.448757,30459.0,30458.0,0.380497]
[1688320836302,0.05,30458.0,30455.0,0.36129246]
[1688320836507,0.3681,30456.0,30455.0,0.00049246]
[1688320836799,0.387798,30456.0,30455.0,0.02460885]
[1688320838292,0.387798,30456.0,30455.0,0.00490985]
[1688320840410,0.755898,30456.0,30455.0,0.00490985]
[1688320841798,0.755898,30456.0,30455.0,0.00049246]
[1688320842005,1.087698,30456.0,30449.0,0.039703]
[1688320842205,0.3681,30450.0,30449.0,0.039703]
[1688320842407,0.387803,30450.0,30449.0,0.039703]
[1688320843111,0.387803,30450.0,30449.0,0.04331132]
[1688320844205,0.387803,30450.0,30449.0,0.06969803]
[1688320846605,0.387803,30450.0,30449.0,0.04999503]
[1688320846799,0.387803,30450.0,30449.0,0.02360832]
[1688320846800,0.748603,30450.0,30449.0,0.02360832]
[1688320847005,0.748603,30450.0,30449.0,0.02780509]
[1688320847705,0.748603,30450.0,30449.0,0.02]
[1688320848209,0.748603,30450.0,30449.0,0.02780548]
[1688320850107,0.748543,30450.0,30449.0,0.02780548]
[1688320855311,0.748543,30450.0,30449.0,0.02]
[1688320856014,0.97579341,30450.0,30449.0,0.02]
[1688320856302,0.748543,30450.0,30449.0,0.02780794]
[1688320856509,0.97561628,30450.0,30449.0,0.02]
[1688320856711,1.22205148,30450.0,30449.0,0.02]
[1688320857100,0.05,30449.0,30447.0,0.02661076]
[1688320857295,0.05,30449.0,30440.0,0.3283]
[1688320857296,0.05,30445.0,30440.0,0.3283]
[1688320857504,0.3667,30441.0,30440.0,0.3166]
[1688320857705,0.386408,30441.0,30440.0,0.02687973]
[1688320858097,0.386408,30441.0,30436.0,0.06465106]
[1688320858302,0.386408,30441.0,30437.0,0.019711]
[1688320858303,0.019708,30441.0,30437.0,0.019711]
[1688320858626,0.3671,30438.0,30437.0,0.019711]
[1688320858800,0.3659,30437.0,30435.0,0.06577587]
[1688320859107,0.387812,30436.0,30432.0,0.36098492]
[1688320859409,0.41518,30437.0,30432.0,0.36098492]
[1688320859410,0.386814,30433.0,30432.0,0.38069892]
[1688320859807,0.386814,30433.0,30432.0,0.42555069]
[1688320860107,0.386814,30433.0,30432.0,0.06475069]
[1688320860301,0.386814,30433.0,30432.0,0.04590124]
[1688320861310,0.05,30431.0,30427.0,0.019718]
[1688320861608,0.735,30428.0,30427.0,0.019718]
[1688320861816,0.754717,30428.0,30427.0,0.019718]
[1688320862115,0.754717,30428.0,30427.0,0.07746281]
[1688320862410,0.754717,30428.0,30427.0,0.05923312]
[1688320862913,0.35286754,30428.0,30427.0,0.49265832]
[1688320863106,0.3681,30430.0,30427.0,0.55845832]
[1688320863405,0.3676,30428.0,30427.0,0.04038367]
[1688320863609,0.3669,30429.0,30427.0,0.04038367]
[1688320863800,0.3669,30429.0,30428.0,0.47199165]
[1688320863999,0.3669,30429.0,30428.0,0.49184365]
[1688320864598,0.386617,30429.0,30428.0,0.05841845]
[1688320864808,0.386617,30429.0,30428.0,0.019852]
[1688320865101,0.3659,30428.0,30426.0,0.385458]
[1688320865417,0.3659,30428.0,30425.0,0.02612939]
[1688320865418,0.387818,30427.0,30425.0,0.02612939]
[1688320865616,0.3681,30426.0,30425.0,0.04584839]
[1688320865910,0.387819,30426.0,30425.0,0.019719]
[1688320866112,0.387819,30426.0,30425.0,0.03856845]
[1688320866613,0.049296,30428.0,30425.0,0.39936845]
[1688320866917,0.425855,30429.0,30426.0,0.03707914]
[1688320867110,0.019717,30431.0,30428.0,0.3608]
[1688320867305,0.36759295,30432.0,30429.0,0.03856645]
[1688320867618,0.36759295,30432.0,30430.0,0.05439551]
[1688320867801,0.38730795,30432.0,30431.0,0.03856445]
[1688320868110,0.38730795,30432.0,30431.0,0.05679414]
[1688320868319,0.38730795,30432.0,30431.0,0.03856445]
[1688320868516,0.38730795,30432.0,30431.0,0.05679414]
[1688320868812,0.38730795,30432.0,30431.0,0.41759414]
[1688320869206,0.25880193,30432.0,30431.0,0.39936445]
[1688320869516,0.059138,30436.0,30431.0,0.39936445]
[1688320869517,0.3681,30434.0,30431.0,0.39936445]
[1688320869710,0.3681,30434.0,30432.0,0.01884945]
[1688320870013,0.3681,30434.0,30433.0,0.019714]
[1688320870217,0.3681,30434.0,30433.0,0.03856345]
[1688320870715,0.387814,30434.0,30433.0,0.05679314]
[1688320871104,0.3669,30434.0,30433.0,0.019714]
[1688320871418,0.386613,30434.0,30431.0,0.419946]
[1688320871616,0.387815,30432.0,30431.0,0.059146]
[1688320871822,0.387815,30432.0,30431.0,0.07737569]
[1688320872015,0.387815,30432.0,30431.0,0.059146]
[1688320873507,0.387815,30432.0,30423.0,0.01972]
[1688320873508,0.05,30429.0,30423.0,0.01972]
[1688320873714,0.3681,30424.0,30420.0,0.065743]
[1688320873912,0.019721,30423.0,30421.0,0.03707914]
[1688320874112,0.019721,30423.0,30420.0,0.065743]
[1688320874113,0.3681,30422.0,30420.0,0.065743]
[1688320874414,0.019722,30422.0,30421.0,0.07280114]
[1688320874618,0.386822,30422.0,30421.0,0.05457145]
[1688320874816,0.386822,30422.0,30421.0,0.07280114]
[1688320875014,0.386822,30422.0,30421.0,0.43360114]
[1688320875216,0.386822,30422.0,30421.0,0.41537145]
[1688320875410,0.386822,30422.0,30421.0,0.43360114]
[1688320876320,0.386822,30422.0,30421.0,0.41537145]
[1688320876724,0.386822,30422.0,30421.0,0.43360114]
[1688320877017,0.386822,30422.0,30421.0,0.42473113]
[1688320877316,0.386822,30422.0,30421.0,0.44296082]
[1688320877623,0.386822,30422.0,30421.0,0.46181027]
[1688320878117,0.386822,30422.0,30421.0,0.44358058]
[1688320878308,0.386822,30422.0,30421.0,0.46181027]
[1688320878508,0.386822,30422.0,30421.0,0.44358058]
[1688320878910,0.386822,30422.0,30421.0,0.46181027]
[1688320879826,0.386822,30422.0,30421.0,0.44358058]
[1688320880527,0.386822,30422.0,30421.0,0.42473113]
[1688320881325,0.386822,30422.0,30421.0,0.46181027]
[1688320883431,0.3681,30424.0,30421.0,0.46181027]
[1688320883726,0.3681,30424.0,30422.0,0.03707914]
[1688320883926,0.3681,30424.0,30423.0,0.019721]
[1688320884127,0.3681,30424.0,30423.0,0.08507531]
[1688320885421,0.387821,30424.0,30423.0,0.04799617]
[1688320885623,0.387821,30424.0,30423.0,0.08507531]
[1688320887323,0.019721,30424.0,30423.0,0.08507531]
[1688320887525,0.04979306,30425.0,30423.0,0.08507531]
[1688320887726,0.04979306,30425.0,30424.0,0.39787914]
[1688320887931,0.04979306,30425.0,30424.0,0.41760014]
[1688320888123,0.00049306,30425.0,30424.0,0.44587677]
[1688320888317,0.00049306,30425.0,30424.0,0.81397677]
[1688320888921,0.386618,30429.0,30425.0,0.01857805]
[1688320889238,0.019717,30430.0,30428.0,0.7272]
[1688320889421,0.019717,30430.0,30429.0,0.380517]
[1688320889727,0.019717,30430.0,30429.0,0.41759614]
[1688320889926,0.059148,30432.0,30429.0,0.41759614]
[1688320890116,0.3681,30433.0,30431.0,0.369816]
[1688320890117,0.02020794,30433.0,30431.0,0.369816]
[1688320890324,0.02020794,30433.0,30432.0,0.387815]
[1688320890520,0.02020794,30433.0,30432.0,0.40666445]
[1688320890723,0.00049294,30433.0,30432.0,0.40517914]
[1688320891617,0.00122949,30433.0,30432.0,0.40517914]
[1688320891819,0.00122949,30433.0,30432.0,0.76597914]
[1688320892016,0.00122949,30433.0,30432.0,0.78738081]
[1688320892426,0.00122949,30433.0,30432.0,1.11408081]
[1688320892715,0.3681,30439.0,30432.0,1.11408081]
[1688320892921,0.3681,30439.0,30437.0,0.3608]
[1688320893122,0.3681,30439.0,30438.0,0.03707914]
[1688320893324,0.05,30441.0,30438.0,0.4248481]
[1688320893527,0.3648,30442.0,30440.0,0.3608]
[1688320893728,0.3648,30442.0,30441.0,0.01786733]
[1688320894028,0.3648,30442.0,30441.0,0.05494647]
[1688320894420,0.00049277,30443.0,30441.0,0.42134647]
[1688320894625,0.00049277,30443.0,30442.0,0.03707914]
[1688320895039,0.00049277,30443.0,30442.0,0.05199076]
[1688320895632,0.00114938,30443.0,30442.0,0.05199076]
[1688320899534,0.36924938,30443.0,30440.0,0.02608348]
[1688320899738,0.7277,30441.0,30437.0,0.3608]
[1688320899934,0.3681,30438.0,30437.0,0.3608]
[1688320900243,0.42249551,30438.0,30436.0,0.00049277]
[1688320900432,0.3681,30437.0,30436.0,0.01872246]
[1688320900642,0.3681,30437.0,30436.0,0.01934222]
[1688320901039,0.7362,30437.0,30436.0,0.00049277]
[1688320901742,0.73685039,30437.0,30436.0,0.00049277]
[1688320902337,0.78685039,30437.0,30436.0,0.00049277]
[1688320902535,0.78685039,30437.0,30429.0,0.4266]
[1688320902736,0.3648,30430.0,30429.0,0.4266]
[1688320902946,0.3648,30430.0,30429.0,0.3608]
[1688320902947,0.41919551,30430.0,30429.0,0.3608]
[1688320903149,0.3648,30430.0,30429.0,0.3608]
[1688320903447,0.3681,30431.0,30429.0,0.37964945]
[1688320903647,0.00064675,30430.0,30429.0,0.37902969]
[1688320903837,0.00064675,30430.0,30429.0,0.773649]
[1688320904046,0.00064675,30430.0,30429.0,1.15329845]
[1688320904548,0.00049294,30433.0,30429.0,1.15329845]
[1688320904752,0.00049294,30433.0,30432.0,0.3608]
[1688320905246,0.00049294,30433.0,30432.0,0.39787914]
[1688320905643,0.00114454,30433.0,30432.0,0.03707914]
[1688320905847,0.00114454,30433.0,30432.0,0.01884945]
[1688320906044,0.36924454,30433.0,30429.0,0.38731931]
[1688320906237,0.00114454,30433.0,30429.0,0.38731931]
[1688320906439,0.00114454,30433.0,30430.0,0.01884945]
[1688320906842,0.00114454,30433.0,30429.0,0.38731931]
[1688320907037,0.00114454,30433.0,30430.0,0.03707914]
[1688320907238,0.00114454,30433.0,30431.0,0.01486693]
[1688320907437,0.00114454,30433.0,30429.0,0.38731931]
[1688320907640,0.00114454,30433.0,30430.0,0.03707914]
[1688320907841,0.00114454,30433.0,30430.0,0.01486712]
[1688320908052,0.00114454,30433.0,30431.0,0.01884945]
[1688320908251,0.00114454,30433.0,30432.0,0.01486728]
[1688320908463,0.00114454,30433.0,30429.0,0.38731931]
[1688320908743,0.00114454,30433.0,30430.0,0.05194658]
[1688320908939,0.36924454,30433.0,30430.0,0.01486744]
[1688320909249,0.36924454,30433.0,30431.0,0.03707914]
[1688320909446,0.36924454,30433.0,30432.0,0.01486767]
[1688320909649,0.36924454,30433.0,30432.0,0.05194681]
[1688320909840,0.36924454,30433.0,30432.0,0.39787914]
[1688320910037,0.00114454,30433.0,30432.0,0.78084701]
[1688320912051,0.00114454,30433.0,30432.0,0.76261732]
[1688320912252,0.00114454,30433.0,30432.0,0.78084701]
[1688320915143,0.23152661,30440.0,30432.0,0.78084701]
[1688320915342,0.23152661,30440.0,30438.0,0.3659]
[1688320915554,0.27537931,30441.0,30439.0,0.01884945]
[1688320915852,0.05,30441.0,30439.0,0.01884945]
[1688320916163,0.10439551,30441.0,30439.0,0.01884945]
[1688320916546,0.27537931,30441.0,30439.0,0.01884945]
[1688320916742,0.27537931,30441.0,30440.0,0.01492157]
[1688320916942,0.27537931,30441.0,30440.0,0.01884945]
[1688320917149,0.05,30441.0,30440.0,0.01884945]
[1688320917749,0.05,30441.0,30440.0,0.03707914]
[1688320917950,0.05,30441.0,30440.0,0.01884945]
[1688320918555,0.27537931,30441.0,30440.0,0.01884945]
[1688320919249,0.05,30441.0,30440.0,0.03707914]
[1688320919444,0.05,30441.0,30440.0,0.05200165]
[1688320920043,0.05,30441.0,30440.0,0.04822704]
[1688320920255,0.05,30441.0,30440.0,0.02999735]
[1688320920656,0.05,30441.0,30440.0,0.04822704]
[1688320920852,0.06971,30441.0,30440.0,0.04970735]
[1688320921055,0.06971,30441.0,30440.0,0.0111479]
[1688320921356,0.06971,30441.0,30437.0,0.05962577]
[1688320921357,0.66318931,30441.0,30437.0,0.05962577]
[1688320921551,0.06971,30441.0,30440.0,0.01114838]
[1688320921756,0.06971,30441.0,30437.0,0.05962577]
[1688320921944,0.06971,30441.0,30438.0,0.01123932]
[1688320922150,0.22665386,30440.0,30438.0,0.01123932]
[1688320922351,0.019711,30439.0,30438.0,0.01123932]
[1688320922749,0.019711,30439.0,30438.0,0.03095032]
[1688320924245,0.019711,30439.0,30438.0,0.06802946]
[1688320924651,0.109133,30441.0,30438.0,0.06802946]
[1688320924850,0.109133,30441.0,30439.0,0.03707914]
[1688320925165,0.109133,30441.0,30440.0,0.01971]
[1688320925554,0.109133,30441.0,30440.0,0.03211705]
[1688320926360,0.109133,30441.0,30440.0,0.0509665]
[1688320927150,0.05,30441.0,30440.0,0.0509665]
[1688320927356,0.05,30441.0,30440.0,0.43729619]
[1688320927753,0.069709,30441.0,30440.0,0.43729619]
[1688320928156,0.069709,30441.0,30440.0,0.06919619]
[1688320928847,0.069709,30441.0,30440.0,0.0509665]
[1688320929652,0.069709,30441.0,30440.0,0.06919619]
[1688320930047,0.069709,30441.0,30440.0,0.0509665]
[1688320930659,0.39768742,30441.0,30440.0,0.06919619]
[1688320930850,0.32973288,30441.0,30440.0,0.06919619]
[1688320931170,0.27973288,30441.0,30440.0,0.06919619]
[1688320931363,0.84772349,30442.0,30440.0,0.06919619]
[1688320931554,0.84772349,30442.0,30440.0,0.05034674]
[1688320931754,0.84772349,30442.0,30441.0,0.01884945]
[1688320931955,0.58769961,30442.0,30441.0,0.05096769]
[1688320932154,0.6556533,30442.0,30441.0,0.05096769]
[1688320932753,0.42412669,30442.0,30441.0,0.05096769]
[1688320933465,0.42412669,30442.0,30441.0,0.06919738]
[1688320933664,0.42412669,30442.0,30441.0,0.41736769]
[1688320934164,0.42412669,30442.0,30441.0,0.43559738]
[1688320934566,0.71588867,30442.0,30441.0,0.43559738]
[1688320936167,0.71588867,30442.0,30441.0,0.41736769]
[1688320937067,0.71588867,30442.0,30441.0,0.43559738]
[1688320937363,0.66661567,30442.0,30441.0,0.79639738]
[1688320937568,0.3069,30442.0,30441.0,0.79639738]
[1688320938161,0.22761603,30443.0,30441.0,0.79639738]
[1688320938361,0.22761603,30443.0,30442.0,0.40467914]
[1688320938677,0.22761603,30443.0,30442.0,0.43679956]
[1688320938868,0.26332403,30443.0,30442.0,0.43679956]
[1688320939261,0.26332403,30443.0,30442.0,0.39972042]
[1688320939654,0.26332403,30443.0,30442.0,0.03212042]
[1688320940772,0.26332403,30443.0,30442.0,0.05096987]
[1688320942470,0.26332403,30443.0,30442.0,0.41706987]
[1688320942666,0.03620077,30443.0,30442.0,0.41706987]
[1688320942962,0.36372394,30443.0,30442.0,0.01241142]
[1688320943367,0.36372394,30443.0,30441.0,0.04617004]
[1688320943564,0.380509,30442.0,30441.0,0.019709]
[1688320944872,1.00817844,30442.0,30441.0,0.019709]
[1688320945164,1.1365574,30442.0,30441.0,0.019709]
[1688320946466,0.05,30441.0,30440.0,0.00619625]
[1688320946771,0.58971059,30441.0,30436.0,0.019773]
[1688320946969,1.01970918,30438.0,30436.0,0.019773]
[1688320947167,1.10738361,30438.0,30436.0,0.019773]
[1688320947369,0.86976994,30438.0,30436.0,0.019773]
[1688320948163,0.86976994,30438.0,30436.0,0.04589978]
[1688320948368,0.86976994,30438.0,30432.0,0.410088]
[1688320948369,0.95472634,30438.0,30432.0,0.410088]
[1688320948671,0.25958558,30433.0,30431.0,0.06572]
[1688320948971,0.019715,30432.0,30431.0,0.06572]
[1688320949567,0.05,30429.0,30428.0,0.00049291]
[1688320949765,0.85301251,30429.0,30428.0,0.00049291]
[1688320950066,0.92098225,30429.0,30426.0,0.065731]
[1688320950372,0.387819,30427.0,30426.0,0.065731]
[1688320950762,0.61487749,30427.0,30426.0,0.065731]
[1688320951171,0.61487749,30427.0,30426.0,0.088238]
[1688320952261,0.22705849,30428.0,30426.0,0.83548745]
[1688320952577,0.059157,30429.0,30427.0,0.3681]
[1688320952875,0.059157,30429.0,30428.0,0.42289714]
[1688320953166,0.059157,30429.0,30428.0,0.44092986]
[1688320953773,0.059157,30429.0,30428.0,0.42270017]
[1688320955171,0.059157,30429.0,30428.0,0.44092986]
[1688320955676,0.019717,30430.0,30428.0,0.44092986]
[1688320955872,0.019717,30430.0,30429.0,0.03707914]
[1688320956074,0.019717,30430.0,30429.0,0.07504477]
[1688320957071,0.019717,30430.0,30429.0,0.05681508]
[1688320957668,0.019717,30430.0,30429.0,0.03796563]
[1688320957867,0.387817,30430.0,30429.0,0.03796563]
[1688320961878,0.387817,30430.0,30429.0,0.05681508]
[1688320962577,0.019717,30430.0,30429.0,0.05681508]
[1688320963782,0.019717,30430.0,30429.0,0.03796563]
[1688320966682,0.019717,30430.0,30429.0,0.05681508]
[1688320969778,0.268317,30430.0,30429.0,0.30451508]
[1688320969977,0.268317,30430.0,30429.0,0.05681508]
[1688320970177,0.268317,30430.0,30429.0,0.30461508]
[1688320971583,0.268317,30430.0,30429.0,0.28576563]
[1688320971980,0.268317,30430.0,30429.0,0.31160964]
[1688320972184,0.268317,30430.0,30429.0,0.33045909]
[1688320973683,0.268317,30430.0,30429.0,0.31160964]
[1688320974577,0.268317,30430.0,30426.0,0.426531]
[1688320974777,0.2484,30427.0,30426.0,0.019719]
[1688320974980,0.268119,30427.0,30426.0,0.04609189]
[1688320975279,0.268119,30427.0,30423.0,0.307463]
[1688320975484,0.2486,30424.0,30423.0,0.307463]
[1688320975679,0.26832,30424.0,30423.0,0.307463]
[1688320976086,0.26832,30424.0,30423.0,0.307763]
[1688320976993,0.26832,30424.0,30423.0,0.2486]
[1688320977182,0.26832,30424.0,30423.0,0.268321]
[1688320977384,0.26832,30424.0,30423.0,0.29405738]
[1688320977801,0.26832,30424.0,30415.0,0.049316]
[1688320977802,0.05,30421.0,30415.0,0.049316]
[1688320978084,0.266124,30418.0,30417.0,0.019725]
[1688320978393,0.05,30416.0,30415.0,0.04178259]
[1688320978693,0.318326,30416.0,30415.0,0.016]
[1688320979888,0.069726,30416.0,30415.0,0.035726]
[1688320980190,0.438226,30416.0,30415.0,0.035726]
[1688320980385,0.438226,30416.0,30415.0,0.016]
[1688320981085,0.438226,30416.0,30415.0,0.035726]
[1688320981086,0.069726,30416.0,30415.0,0.035726]
[1688320981591,0.069726,30416.0,30415.0,0.07280514]
[1688320981889,0.069726,30416.0,30415.0,0.05457545]
[1688320982387,0.069726,30416.0,30415.0,0.07595518]
[1688320983190,0.069666,30416.0,30415.0,0.07595518]
[1688320983390,0.069666,30416.0,30415.0,0.09418487]
[1688320983591,0.069666,30416.0,30415.0,0.07595518]
[1688320984392,0.069666,30416.0,30415.0,0.09418487]
[1688320984585,0.069666,30416.0,30415.0,0.07595518]
[1688320985393,0.435666,30416.0,30415.0,0.03737973]
[1688320988981,0.435666,30416.0,30415.0,0.02137973]
[1688320991390,0.435666,30416.0,30415.0,0.04110573]
[1688320995401,0.435666,30416.0,30415.0,0.02137973]
[1688320996807,0.435666,30416.0,30415.0,0.04110573]
[1688320997495,0.435666,30416.0,30415.0,0.05995518]
[1688320999403,0.435666,30416.0,30415.0,0.04110573]
[1688321000406,0.019726,30416.0,30415.0,0.10398083]
[1688321000799,0.019726,30416.0,30415.0,0.12283028]
[1688321001505,0.019726,30416.0,30415.0,0.07818487]
[1688321002099,0.019726,30416.0,30415.0,0.02137973]
[1688321002100,0.388226,30416.0,30415.0,0.02137973]
[1688321002602,0.388226,30416.0,30415.0,0.04110573]
[1688321002805,0.388226,30416.0,30415.0,0.02137973]
[1688321004009,0.388226,30416.0,30415.0,0.03737973]
[1688321006398,0.438166,30416.0,30414.0,0.02845254]
[1688321006705,0.746526,30415.0,30414.0,0.02845254]
[1688321011614,0.74725609,30415.0,30414.0,0.0478449]
[1688321020111,0.74725609,30415.0,30410.0,0.00018582]
[1688321020314,0.388229,30411.0,30410.0,0.00018582]
[1688321020516,0.41499488,30411.0,30410.0,0.00018582]
[1688321020719,0.41499488,30411.0,30410.0,0.02600146]
[1688321020906,0.41499488,30411.0,30410.0,0.00018582]
[1688321021308,0.41499488,30411.0,30408.0,0.3026]
[1688321021509,0.7133,30409.0,30408.0,0.3026]
[1688321021719,0.73303,30409.0,30408.0,0.3026]
[1688321022213,0.38823,30409.0,30407.0,0.002]
[1688321022411,0.388231,30408.0,30407.0,0.0478698]
[1688321022609,0.38895264,30408.0,30407.0,0.021732]
[1688321023615,0.4155327,30408.0,30407.0,0.021732]
[1688321024022,0.4155327,30408.0,30407.0,0.002]
[1688321025312,0.4155327,30408.0,30404.0,0.4511423]
[1688321025620,0.388233,30405.0,30404.0,0.38679263]
[1688321025820,0.388233,30405.0,30404.0,0.40652663]
[1688321026217,0.756733,30405.0,30399.0,0.13090876]
[1688321026417,0.385536,30400.0,30395.0,0.6844]
[1688321026621,0.04431606,30400.0,30399.0,0.019737]
[1688321026820,0.386536,30400.0,30399.0,0.019737]
[1688321027410,0.386536,30400.0,30399.0,0.04000882]
[1688321027618,0.38724798,30400.0,30399.0,0.04000882]
[1688321028432,0.38724798,30400.0,30399.0,0.05885827]
[1688321028738,0.36751198,30400.0,30399.0,0.07708796]
[1688321028927,0.00049346,30401.0,30399.0,0.07708796]
[1688321028928,0.36899346,30401.0,30399.0,0.07708796]
[1688321029114,0.36899346,30401.0,30400.0,0.05681514]
[1688321029309,0.35299346,30401.0,30400.0,0.0771083]
[1688321029514,0.37272946,30401.0,30400.0,0.03914261]
[1688321029713,0.37335365,30401.0,30400.0,0.02029316]
[1688321030114,0.37335365,30401.0,30398.0,0.049344]
[1688321030321,0.3685,30399.0,30398.0,0.049344]
[1688321030528,0.388237,30399.0,30397.0,0.00049341]
[1688321030727,0.3685,30398.0,30397.0,0.00049341]
[1688321030917,0.388237,30398.0,30397.0,0.00049341]
[1688321031523,0.388237,30398.0,30397.0,0.07462692]
[1688321031736,0.388237,30398.0,30397.0,0.09347637]
[1688321031737,0.38885756,30398.0,30397.0,0.09347637]
[1688321032028,0.38885756,30398.0,30397.0,0.02023141]
[1688321032721,0.38885756,30398.0,30397.0,0.03908086]
[1688321035232,0.38885756,30398.0,30397.0,0.02023141]
[1688321037219,0.38885756,30398.0,30397.0,0.03908086]
[1688321038024,0.38885756,30398.0,30397.0,0.05731055]
[1688321039322,0.38885756,30398.0,30397.0,0.03908086]
[1688321039526,0.38885756,30398.0,30397.0,0.02023141]
[1688321039829,0.26925756,30398.0,30397.0,0.00049341]
[1688321041625,0.26925756,30398.0,30397.0,0.02023141]
[1688321042034,0.26925756,30398.0,30397.0,0.04060237]
[1688321045724,0.51595756,30398.0,30395.0,0.41775972]
[1688321046025,0.51595756,30398.0,30390.0,0.37003417]
[1688321046026,0.01974,30395.0,30390.0,0.37003417]
[1688321046225,0.267142,30391.0,30390.0,0.332843]
[1688321046425,0.267743,30390.0,30389.0,0.019743]
[1688321046627,0.516343,30390.0,30388.0,0.019744]
[1688321046826,0.516343,30390.0,30388.0,0.03859345]
[1688321046827,0.267543,30389.0,30388.0,0.03859345]
[1688321047336,0.2478,30389.0,30388.0,0.05682314]
[1688321047636,0.26815195,30389.0,30388.0,0.05682314]
[1688321048031,0.26815195,30389.0,30388.0,0.03859345]
[1688321048237,0.24840895,30389.0,30388.0,0.03859345]
[1688321048438,0.24840895,30389.0,30388.0,0.05682314]
[1688321048639,0.24774,30389.0,30388.0,0.05682314]
[1688321050538,0.1983597,30389.0,30388.0,0.05682314]
[1688321051826,0.00049359,30392.0,30388.0,0.05682314]
[1688321052147,0.019737,30399.0,30391.0,0.7874]
[1688321052338,0.04994,30400.0,30397.0,0.3608]
[1688321052645,0.069676,30400.0,30398.0,0.05681614]
[1688321052832,0.268637,30399.0,30398.0,0.03796669]
[1688321053029,0.268637,30399.0,30398.0,0.09298196]
[1688321053332,0.2489,30399.0,30398.0,0.11047257]
[1688321053532,0.2489,30399.0,30398.0,0.35727257]
[1688321053835,0.268637,30399.0,30398.0,0.37550226]
[1688321054436,0.268637,30399.0,30398.0,0.32110675]
[1688321055044,0.2489,30399.0,30398.0,0.32110675]
[1688321055536,0.059195,30408.0,30400.0,1.0658]
[1688321055740,0.065768,30410.0,30407.0,0.380532]
[1688321055939,0.065768,30410.0,30409.0,0.248]
[1688321056135,0.313568,30410.0,30409.0,0.26773]
[1688321056332,0.313568,30410.0,30409.0,0.30480914]
[1688321056534,0.2478,30410.0,30409.0,0.66560914]
[1688321057033,0.2478,30410.0,30409.0,0.67416299]
[1688321057532,0.24789326,30413.0,30410.0,0.0658]
[1688321057735,0.24789326,30413.0,30412.0,0.6097]
[1688321058043,0.24789326,30413.0,30412.0,0.629428]
[1688321058236,0.24789326,30413.0,30412.0,0.66650714]
[1688321059338,0.26762126,30413.0,30412.0,0.41760714]
[1688321059848,0.24789326,30413.0,30412.0,0.73000714]
[1688321060035,0.2478,30416.0,30413.0,1.3267]
[1688321060348,0.2478,30416.0,30415.0,0.629426]
[1688321060533,0.019724,30419.0,30415.0,0.695226]
[1688321060738,0.2489,30420.0,30419.0,0.019724]
[1688321060936,0.2489,30420.0,30419.0,0.53954476]
[1688321061137,0.2489,30420.0,30419.0,0.5766239]
[1688321061447,0.2482931,30423.0,30419.0,0.6626479]
[1688321061639,0.2482931,30423.0,30422.0,0.6076]
[1688321061944,0.2680141,30423.0,30422.0,0.627322]
[1688321062134,0.0202141,30423.0,30422.0,0.66440114]
[1688321064536,0.0004931,30423.0,30422.0,0.66440114]
[1688321066152,0.019719,30427.0,30423.0,0.03707914]
[1688321066447,0.065727,30429.0,30427.0,0.019719]
[1688321066650,0.065727,30429.0,30428.0,0.266518]
[1688321066946,0.019717,30430.0,30428.0,0.64616745]
[1688321067150,0.019717,30430.0,30429.0,0.2489]
[1688321067450,0.00067787,30432.0,30429.0,0.30569614]
[1688321067638,0.00067787,30432.0,30431.0,0.6085]
[1688321067950,0.00067787,30432.0,30431.0,0.73109514]
[1688321068138,0.019713,30436.0,30434.0,0.2489]
[1688321068333,0.019713,30436.0,30435.0,0.66649214]
[1688321068542,0.22416997,30439.0,30436.0,0.3267]
[1688321068847,0.019709,30442.0,30438.0,0.6085]
[1688321069046,0.22466274,30443.0,30441.0,0.6097]
[1688321069246,0.24437174,30443.0,30442.0,0.2466]
[1688321069451,0.02020177,30443.0,30442.0,0.266309]
[1688321069640,0.02020177,30443.0,30442.0,0.387809]
[1688321069839,0.02020177,30443.0,30442.0,0.42488814]
[1688321070346,0.00049277,30443.0,30442.0,2.17808814]
[1688321070551,0.065684,30449.0,30443.0,0.40197914]
[1688321070552,0.019706,30446.0,30443.0,0.40197914]
[1688321070745,0.019706,30446.0,30445.0,0.7289]
[1688321070954,0.019706,30446.0,30445.0,0.748607]
[1688321071142,0.065684,30449.0,30445.0,0.78568614]
[1688321071338,0.28223117,30452.0,30448.0,0.7289]
[1688321071339,0.23229117,30452.0,30448.0,0.7289]
[1688321071541,0.00031823,30453.0,30451.0,0.7258]
[1688321071737,0.00031823,30453.0,30452.0,0.387802]
[1688321071940,0.00031823,30453.0,30452.0,0.748602]
[1688321072141,0.04994,30457.0,30452.0,0.748602]
[1688321072142,0.069639,30457.0,30452.0,0.748602]